bitfinex/quotes_ETHUSD_20250129
["timestamp","ask_amount","ask_price","bid_price","bid_amount"]
[1738187566806,0.01990519,3150.2,3149.8,3.17475]
[1738187567055,0.4383,3150.3,3149.8,3.17475]
[1738187567346,0.01974395,3150.1,3149.8,3.17475]
[1738187567536,3.61265,3150.3,3149.6,3.92889]
[1738187567537,0.01990519,3150.2,3149.6,7.10383]
[1738187567730,0.0195827,3150.0,3149.7,3.17483]
[1738187568047,0.01952308,3149.9,3149.8,3.17479]
[1738187568350,0.4383,3150.3,3149.8,3.17479]
[1738187568512,0.01942144,3149.9,3149.8,3.17479]
[1738187568719,3.6126,3150.3,3149.8,3.17479]
[1738187568961,0.01942144,3149.9,3149.6,3.92884]
[1738187569261,0.01936757,3149.8,3149.7,3.1749]
[1738187569639,3.1744,3150.2,3149.7,3.1749]
[1738187569822,0.01985135,3150.1,3149.6,3.92884]
[1738187570022,0.01327859,3150.0,3149.6,3.17494]
[1738187570324,0.01327859,3150.0,3149.8,3.17479]
[1738187570646,0.01298289,3149.9,3149.8,3.17479]
[1738187571358,0.01298289,3149.9,3149.7,3.17489]
[1738187571751,0.01298289,3149.9,3149.4,3.97955]
[1738187571952,0.01298289,3149.9,3149.6,3.17496]
[1738187572468,0.01298289,3149.9,3149.5,0.397955]
[1738187572646,0.01298289,3149.9,3149.4,3.17513]
[1738187574460,0.01298289,3149.9,3149.5,3.17509]
[1738187574926,0.01298289,3149.9,3149.6,3.175]
[1738187575463,0.01298289,3149.9,3149.1,0.8013]
[1738187575761,3.61315,3149.8,3149.2,3.17535]
[1738187576060,3.18709222,3149.7,3149.1,3.17543]
[1738187576261,3.18709222,3149.7,3149.2,3.1754]
[1738187576567,0.01217222,3149.7,3149.2,3.1754]
[1738187576962,6.78803,3149.8,3149.2,3.1754]
[1738187577163,0.01927302,3149.6,3149.1,3.17543]
[1738187577362,0.0191802,3149.7,3149.3,3.1753]
[1738187577562,0.01936585,3149.5,3149.3,3.1753]
[1738187577864,0.01945868,3149.4,3148.9,3.17565]
[1738187578228,3.61314,3149.8,3148.8,0.7802]
[1738187578571,0.02439353,3149.7,3149.1,3.17542]
[1738187578774,3.17503,3149.6,3149.1,3.17542]
[1738187578954,3.17503,3149.6,3148.9,3.17571]
[1738187578955,3.17512,3149.5,3148.9,3.17571]
[1738187579162,0.02457919,3149.5,3149.0,3.17553]
[1738187579348,0.4383,3149.4,3148.9,3.17571]
[1738187579533,3.61359,3149.4,3148.7,3.17582]
[1738187579734,0.02974039,3149.3,3148.8,3.17573]
[1738187580158,3.20505039,3149.3,3148.6,0.64459177]
[1738187580473,3.20505039,3149.3,3148.7,3.17587]
[1738187581337,3.20505039,3149.3,3148.6,3.17597]
[1738187581534,3.17541,3149.2,3148.6,3.17597]
[1738187582039,3.20505039,3149.3,3148.7,3.1759]
[1738187582239,6.38043039,3149.3,3148.7,3.1759]
[1738187583048,3.17543,3149.2,3148.7,3.1759]
[1738187583248,3.18056872,3149.1,3148.6,3.17599]
[1738187583450,0.00505872,3149.1,3148.7,3.17588]
[1738187583647,3.20015712,3149.3,3148.7,3.17588]
[1738187583858,0.00522009,3149.2,3148.7,3.17588]
[1738187584154,0.00522009,3149.2,3148.5,3.17608]
[1738187584155,3.17557,3149.1,3148.5,3.17604]
[1738187584374,3.17587,3148.8,3148.0,3.94424]
[1738187584738,0.4383,3148.6,3148.0,3.17654]
[1738187584939,3.17611,3148.5,3148.0,3.17654]
[1738187585189,3.17611,3148.5,3147.8,3.17675]
[1738187585190,3.17624,3148.4,3147.8,3.17675]
[1738187585664,3.17624,3148.4,3147.9,3.17666]
[1738187586552,3.17624,3148.4,3147.8,3.17675]
[1738187586753,3.17624,3148.4,3147.8,6.35349]
[1738187586962,0.00277031,3148.3,3147.8,3.17674]
[1738187587170,0.00277031,3148.3,3147.8,3.571184]
[1738187587374,3.17623,3148.4,3147.8,6.747944]
[1738187587684,3.17612,3148.5,3148.0,3.17661]
[1738187587885,0.4383,3148.6,3148.2,3.17632]
[1738187588048,3.0,3148.9,3148.4,3.17621]
[1738187588249,1.02520547,3148.9,3148.2,3.17632]
[1738187588473,3.17594,3148.7,3148.2,3.17632]
[1738187588751,6.78964,3149.0,3148.4,3.17621]
[1738187588946,0.4383,3149.0,3148.4,3.17614]
[1738187589149,0.4383,3149.3,3148.9,3.1757]
[1738187589587,0.4383,3149.3,3148.7,3.17583]
[1738187589748,3.17544,3149.2,3148.5,3.96563]
[1738187589949,3.17544,3149.2,3148.6,3.176]
[1738187590285,3.17557,3149.1,3148.5,6.748626]
[1738187590488,3.18019138,3149.1,3148.5,6.748626]
[1738187590884,0.00462138,3149.1,3148.5,3.572596]
[1738187591063,0.00462138,3149.1,3148.6,3.5331996]
[1738187591256,0.00462138,3149.1,3148.8,3.17581]
[1738187591459,3.61361,3149.3,3148.8,3.17581]
[1738187591654,3.17552,3149.1,3148.5,3.17605]
[1738187591849,0.0049482,3149.0,3148.6,3.17601]
[1738187592153,3.61362,3149.3,3148.7,3.17584]
[1738187594194,0.00527094,3149.2,3148.7,3.17584]
[1738187595036,0.00527094,3149.2,3148.8,3.1758]
[1738187595188,0.4383,3149.3,3148.8,3.1758]
[1738187595391,0.00527094,3149.2,3148.8,3.1758]
[1738187595586,0.4383,3149.3,3149.0,3.17556]
[1738187595951,0.00488447,3149.2,3149.0,3.17556]
[1738187596427,0.00482481,3149.1,3148.9,3.17569]
[1738187596732,0.4383,3149.3,3148.9,3.17569]
[1738187596887,0.00466343,3149.0,3148.9,3.17563]
[1738187597087,0.4383,3149.3,3148.9,3.17563]
[1738187597314,0.00466343,3149.0,3148.9,3.17563]
[1738187597511,3.61367,3149.3,3148.7,3.17587]
[1738187597827,3.17621,3148.5,3147.8,3.17677]
[1738187598016,3.17643,3148.2,3147.6,3.17699]
[1738187598237,3.17658,3148.1,3147.4,3.17716]
[1738187598395,0.4383,3148.0,3147.5,3.17711]
[1738187598595,0.00222608,3147.9,3147.7,3.17686]
[1738187598823,3.17656,3148.1,3147.5,3.17705]
[1738187599022,0.00238759,3148.0,3147.5,3.17705]
[1738187599332,0.00238759,3148.0,3147.5,3.812485]
[1738187599508,0.00238759,3148.0,3147.5,3.17705]
[1738187599710,3.17656,3148.1,3147.5,3.17705]
[1738187599911,0.4383,3148.0,3147.5,3.17705]
[1738187600228,0.04160073,3147.9,3147.6,3.17696]
[1738187600832,0.4383,3148.0,3147.6,3.17696]
[1738187601009,0.04165594,3147.9,3147.6,3.17696]
[1738187601329,0.4383,3148.0,3147.6,3.17696]
[1738187601628,0.04162354,3147.9,3147.6,3.17696]
[1738187601792,0.4383,3148.0,3147.6,3.17696]
[1738187601991,0.04162354,3147.9,3147.6,3.17696]
[1738187602192,0.4383,3148.0,3147.4,3.17722]
[1738187602496,0.04162354,3147.9,3147.6,3.17701]
[1738187603127,0.4383,3148.0,3147.6,3.17701]
[1738187603330,0.4383,3148.0,3147.7,3.17684]
[1738187603636,0.4383,3148.4,3148.0,3.17656]
[1738187603820,3.61453,3148.4,3147.6,6.989333]
[1738187604002,3.1764,3148.3,3147.7,3.17691]
[1738187604397,3.17642,3148.2,3147.7,3.17691]
[1738187604623,0.0075,3148.1,3147.5,0.7718]
[1738187604797,0.0075,3148.1,3147.6,3.17695]
[1738187605238,3.18403,3148.1,3147.4,3.17721]
[1738187605439,3.18403,3148.1,3147.4,6.35434]
[1738187605817,0.4383,3147.9,3147.4,3.17713]
[1738187606012,0.4383,3147.9,3147.5,3.17711]
[1738187606225,0.4383,3147.9,3147.6,3.17702]
[1738187606605,3.61475,3148.2,3147.6,3.17702]
[1738187606944,3.61735882,3148.2,3147.6,3.17702]
[1738187607104,0.44090882,3148.2,3147.9,3.17665]
[1738187607306,0.00260882,3148.2,3148.1,3.17651]
[1738187607636,0.4383,3148.5,3148.1,3.17651]
[1738187607841,0.4383,3148.5,3148.2,3.17633]
[1738187608047,0.00293179,3148.4,3148.2,3.17633]
[1738187608343,0.00293179,3148.4,3148.3,3.17631]
[1738187608539,0.00293179,3148.4,3148.1,3.17651]
[1738187608709,0.00293179,3148.4,3148.1,3.577431]
[1738187608909,0.4383,3148.5,3148.2,3.17636]
[1738187609441,0.04216585,3148.4,3148.2,3.17636]
[1738187609945,0.04216585,3148.4,3148.3,3.17631]
[1738187610819,3.61351,3149.4,3148.5,6.35222]
[1738187611017,0.03642111,3149.3,3148.9,3.17567]
[1738187611446,0.03642111,3149.3,3149.1,6.3509]
[1738187611647,0.03642111,3149.3,3149.0,3.98524]
[1738187611849,0.03642111,3149.3,3149.1,3.17543]
[1738187614263,0.03642111,3149.3,3149.2,3.1754]
[1738187614427,0.03642111,3149.3,3149.1,3.17543]
[1738187615258,3.17571,3148.9,3148.4,4.0004]
[1738187615571,0.4383,3148.6,3147.9,0.8242]
[1738187615874,0.4383,3148.6,3147.6,0.399112]
[1738187615875,3.17633,3148.3,3147.6,4.337462]
[1738187616022,3.17643,3148.2,3147.6,4.337462]
[1738187616222,3.17643,3148.2,3147.7,6.1769]
[1738187616423,3.17616,3148.5,3147.7,6.1769]
[1738187616632,3.17631,3148.3,3147.7,6.1769]
[1738187616924,3.17631,3148.3,3147.7,3.1769]
[1738187617231,3.17631,3148.3,3147.8,3.1768]
[1738187618160,3.61472,3148.2,3147.6,3.17695]
[1738187618364,3.17659,3148.1,3147.5,3.0]
[1738187618566,3.61472,3148.2,3147.5,6.1771]
[1738187618567,3.17668,3148.0,3147.5,6.1771]
[1738187618742,3.17668,3148.0,3147.5,3.1771]
[1738187619139,3.61472,3148.2,3147.6,3.17692]
[1738187619345,6.79122,3148.2,3147.6,3.17692]
[1738187619535,3.17653,3148.1,3147.6,3.17692]
[1738187619966,0.4383,3147.6,3146.6,0.7933]
[1738187620142,0.0075,3148.0,3146.3,3.17826]
[1738187620143,3.17775,3146.9,3146.3,3.17826]
[1738187620331,3.17793,3146.7,3146.1,0.7933]
[1738187620538,3.17815,3146.5,3145.9,3.17871]
[1738187621067,3.17793,3146.7,3146.0,3.17856]
[1738187621366,3.178,3146.7,3146.0,3.17856]
[1738187621669,3.178,3146.7,3146.1,3.17852]
[1738187623945,3.61607,3146.9,3146.3,3.1783]
[1738187624145,3.17783,3146.8,3146.1,3.17852]
[1738187624346,3.17793,3146.7,3146.1,3.17852]
[1738187626233,3.61607,3146.9,3146.2,3.1784]
[1738187626572,3.17784,3146.8,3146.2,3.1784]
[1738187626757,3.17801,3146.7,3146.0,3.17855]
[1738187626957,3.17821,3146.5,3145.8,3.17881]
[1738187628274,3.1784,3146.3,3145.7,0.7941]
[1738187628570,3.17844,3146.2,3145.6,3.17898]
[1738187628767,3.17844,3146.2,3145.6,6.35794]
[1738187629468,3.17844,3146.2,3145.7,3.17893]
[1738187630088,3.17824,3146.4,3145.7,3.17893]
[1738187630254,3.17824,3146.4,3145.8,3.17882]
[1738187630577,0.4383,3146.3,3145.7,3.17885]
[1738187630749,3.17807,3146.6,3145.9,3.17869]
[1738187630935,3.17807,3146.6,3146.0,3.1786]
[1738187631775,0.4383,3146.7,3145.3,3.17925]
[1738187631974,3.1776,3147.1,3146.4,3.17814]
[1738187632543,3.4383,3147.2,3146.6,3.178]
[1738187632736,3.0075,3147.5,3146.6,0.635614]
[1738187632737,0.4383,3147.5,3146.6,0.635614]
[1738187633046,3.17732,3147.3,3146.8,3.17777]
[1738187633398,3.17755,3147.1,3146.4,3.17822]
[1738187633541,3.17755,3147.1,3146.6,3.17802]
[1738187633971,3.17755,3147.1,3146.5,3.17805]
[1738187634363,3.1774,3147.3,3146.6,3.17799]
[1738187634674,3.18489,3147.3,3146.7,3.1779]
[1738187634893,3.17731,3147.4,3146.7,3.1779]
[1738187635178,3.61543,3147.5,3146.9,3.17768]
[1738187635377,0.4383,3147.5,3146.7,3.1779]
[1738187635548,3.17743,3147.2,3146.7,3.1779]
[1738187636089,6.35459,3147.4,3146.7,3.1779]
[1738187636455,3.17729,3147.4,3146.7,3.1779]
[1738187636660,3.17729,3147.4,3146.8,3.17774]
[1738187636856,3.17734,3147.3,3146.7,3.1779]
[1738187637163,3.17755,3147.1,3146.5,3.17812]
[1738187637354,3.17766,3147.0,3146.5,3.17812]
[1738187637687,3.17759,3147.1,3146.5,3.17812]
[1738187637890,3.17733,3147.3,3146.3,0.8087]
[1738187638192,3.17733,3147.3,3146.8,3.17782]
[1738187639291,3.61547,3147.5,3146.9,3.1777]
[1738187639491,6.79268,3147.5,3146.9,3.1777]
[1738187639664,3.61547,3147.5,3146.9,3.1777]
[1738187639874,6.79268,3147.5,3146.9,3.1777]
[1738187640266,0.4383,3147.5,3146.4,3.0]
[1738187640552,0.4383,3147.8,3147.1,3.17747]
[1738187640796,3.17704,3147.6,3147.0,0.8056]
[1738187641112,3.17714,3147.5,3147.0,0.8056]
[1738187641274,3.17714,3147.5,3146.9,3.17766]
[1738187641687,3.17733,3147.3,3146.5,3.17807]
[1738187641858,3.17733,3147.3,3146.6,3.17793]
[1738187642052,6.35475,3147.3,3146.6,3.17793]
[1738187642370,3.17733,3147.3,3146.6,3.17793]
[1738187642880,3.17743,3147.2,3146.6,3.17793]
[1738187643284,3.17823,3146.5,3146.0,0.7796]
[1738187643598,3.17823,3146.5,3145.7,3.95844]
[1738187643599,3.496083,3146.4,3145.7,3.95844]
[1738187643758,3.17826,3146.4,3145.7,3.95844]
[1738187644091,3.17871,3146.0,3145.4,3.17924]
[1738187644297,3.17876,3145.9,3145.3,3.99104]
[1738187644484,3.17871,3146.0,3145.4,3.17923]
[1738187645286,3.19346,3146.2,3145.4,3.17915]
[1738187645590,3.512806,3146.2,3145.4,3.17915]
[1738187645797,3.17866,3146.0,3145.4,3.17915]
[1738187646689,3.17878,3145.9,3145.3,3.99103]
[1738187646893,3.17866,3146.0,3145.3,0.8117]
[1738187647092,3.17866,3146.0,3145.4,3.17921]
[1738187648296,3.512826,3146.2,3145.3,0.8117]
[1738187648474,3.1787,3146.0,3145.4,3.17923]
[1738187648865,3.17878,3145.9,3145.3,3.99103]
[1738187649163,3.17906,3145.6,3145.0,3.94108]
[1738187649388,3.17986,3144.8,3144.3,0.7615]
[1738187649592,0.0075,3144.9,3144.0,0.7615]
[1738187649900,3.18049,3144.2,3143.4,0.7947]
[1738187650198,3.18078,3143.9,3143.4,0.7947]
[1738187650375,3.18078,3143.9,3143.3,3.18135]
[1738187650575,3.18056,3144.1,3143.3,3.18135]
[1738187650777,6.36118,3144.1,3143.3,3.18135]
[1738187650979,3.18056,3144.1,3143.4,3.18125]
[1738187651174,3.18056,3144.1,3143.5,3.1811]
[1738187652291,0.4383,3144.3,3143.5,0.636245]
[1738187652480,0.4383,3144.3,3143.5,3.18108]
[1738187652676,3.18052,3144.2,3143.5,3.18108]
[1738187653419,3.18061,3144.1,3143.5,3.18108]
[1738187653619,3.18066,3144.0,3143.3,6.36256]
[1738187653820,3.18066,3144.0,3143.4,3.18124]
[1738187654026,3.18052,3144.2,3143.5,3.18109]
[1738187654690,3.18065,3144.1,3143.5,3.18109]
[1738187655097,0.0075,3144.0,3143.1,0.8287]
[1738187655424,3.18108,3143.6,3142.8,3.18185]
[1738187655587,3.18128,3143.4,3142.8,3.18185]
[1738187655787,3.18108,3143.6,3142.9,3.18177]
[1738187655987,3.18117,3143.5,3142.7,3.94896]
[1738187656215,3.18117,3143.5,3142.7,0.767]
[1738187656425,0.4383,3143.3,3142.5,3.18215]
[1738187656800,0.4383,3143.3,3142.9,3.18173]
[1738187657000,3.499347,3143.5,3142.9,3.18173]
[1738187657610,0.4383,3143.6,3143.0,3.18167]
[1738187658325,0.4383,3144.0,3143.1,35.0]
[1738187658500,3.18021,3144.5,3143.8,3.18083]
[1738187658707,3.18028,3144.4,3143.8,3.18083]
[1738187658891,3.18786,3144.3,3143.6,3.18106]
[1738187659288,0.4458,3144.3,3143.8,3.18085]
[1738187659494,0.4458,3144.3,3143.7,3.18095]
[1738187659701,0.4458,3144.3,3143.6,3.18106]
[1738187659906,0.4458,3144.3,3143.9,3.18075]
[1738187660433,0.4458,3144.3,3143.7,3.1809]
[1738187661937,0.4458,3144.3,3143.9,3.18073]
[1738187662227,0.4458,3144.3,3143.7,3.18088]
[1738187662408,3.18056,3144.1,3143.5,3.18114]
[1738187662813,3.18068,3144.0,3143.3,3.18129]
[1738187663007,0.0075,3143.9,3143.3,3.18129]
[1738187663207,3.18054,3144.2,3143.6,3.181]
[1738187663623,3.18054,3144.2,3143.4,3.18119]
[1738187663932,3.18093,3143.8,3143.2,3.18145]
[1738187664519,3.61916,3143.9,3143.3,3.18128]
[1738187664728,0.4383,3143.9,3143.4,3.18119]
[1738187666128,0.4383,3143.9,3143.5,3.18116]
[1738187666337,0.4383,3143.9,3143.4,3.18123]
[1738187667442,0.4383,3144.4,3144.1,3.18054]
[1738187667645,3.0,3145.2,3143.4,3.817465]
[1738187667646,0.4383,3144.7,3143.8,3.0]
[1738187667869,0.4383,3145.2,3143.8,0.7802]
[1738187668142,0.4383,3144.5,3143.8,0.7802]
[1738187668444,0.4383,3144.5,3144.1,3.18053]
[1738187669017,0.4383,3144.5,3143.9,3.18076]
[1738187669344,3.18728,3144.9,3143.8,0.7802]
[1738187669345,0.4383,3144.8,3144.4,3.18025]
[1738187669636,3.61815,3144.8,3144.2,3.1804]
[1738187669842,6.79809,3144.8,3144.2,3.1804]
[1738187670038,3.61815,3144.8,3144.2,3.1804]
[1738187670347,3.61815,3144.8,3143.8,0.7802]
[1738187670348,3.18021,3144.5,3143.8,3.18083]
[1738187670542,3.18021,3144.5,3143.9,3.18074]
[1738187670742,3.18047,3144.2,3143.6,6.36199]
[1738187670942,3.18047,3144.2,3143.6,3.18099]
[1738187671263,3.18033,3144.4,3143.7,3.18093]
[1738187671410,3.860217,3144.4,3143.7,3.18093]
[1738187672055,0.679887,3144.4,3143.7,3.18093]
[1738187672255,3.18039,3144.3,3143.7,3.18093]
[1738187672456,3.18039,3144.3,3143.6,3.18098]
[1738187672615,0.679887,3144.4,3143.8,3.18079]
[1738187672817,3.860137,3144.4,3143.8,3.18079]
[1738187673861,0.0075,3144.0,3143.4,3.18118]
[1738187675072,3.18082,3143.9,3143.2,3.18139]
[1738187675476,3.18082,3143.9,3143.4,3.18125]
[1738187675685,0.0075,3144.0,3143.4,3.18125]
[1738187675977,0.0075,3144.0,3143.6,3.18104]
[1738187676141,0.015,3144.0,3143.6,3.18104]
[1738187676345,0.4383,3144.1,3143.6,3.18104]
[1738187676551,3.4383,3144.4,3143.9,3.18074]
[1738187676963,0.4383,3144.4,3143.9,3.18074]
[1738187677286,0.015,3144.3,3143.7,3.18092]
[1738187677437,3.19537,3144.3,3143.7,3.18092]
[1738187679285,3.18048,3144.2,3143.7,3.18092]
[1738187679437,3.861895,3144.2,3143.7,3.18092]
[1738187679640,0.681415,3144.2,3143.7,3.18092]
[1738187679942,3.19538,3144.3,3143.7,3.18092]
[1738187680176,3.18052,3144.2,3143.6,3.18106]
[1738187680330,0.4383,3144.1,3143.6,3.18106]
[1738187680531,0.0075,3144.0,3143.3,3.18131]
[1738187680733,3.18822,3144.0,3143.3,3.18131]
[1738187681036,0.0075,3143.5,3142.9,3.18171]
[1738187681230,3.62704,3143.5,3142.9,3.18171]
[1738187681442,3.62704,3143.5,3142.6,3.18202]
[1738187681443,0.0075,3143.3,3142.6,3.18202]
[1738187681641,3.18147,3143.2,3142.6,6.36402]
[1738187681889,3.18147,3143.2,3142.6,3.182]
[1738187682045,3.18147,3143.2,3142.6,6.364]
[1738187682247,3.18147,3143.2,3142.6,3.182]
[1738187682580,0.4383,3143.1,3142.6,3.182]
[1738187682980,0.4383,3143.1,3142.7,3.18196]
[1738187683983,3.4383,3143.5,3142.3,1.3757]
[1738187684170,0.4383,3143.5,3143.2,3.18145]
[1738187684485,0.0075,3143.1,3142.5,3.18212]
[1738187684690,0.0075,3143.1,3142.6,3.18206]
[1738187685388,0.0075,3143.1,3142.7,3.18196]
[1738187685586,0.3264,3143.1,3142.5,3.18212]
[1738187685752,3.18908,3143.1,3142.5,3.18212]
[1738187685955,3.18908,3143.1,3142.6,3.18201]
[1738187686359,3.18148,3143.2,3142.6,3.18201]
[1738187686559,0.0075,3143.1,3142.6,3.18201]
[1738187686975,3.18907,3143.1,3142.6,3.18201]
[1738187687199,0.637054,3143.0,3142.6,3.18201]
[1738187687550,0.637054,3143.0,3142.4,3.1822]
[1738187687755,0.637054,3143.0,3142.5,3.18217]
[1738187687756,0.4383,3142.9,3142.5,3.18217]
[1738187688164,0.4383,3142.9,3142.4,3.1822]
[1738187688363,0.4383,3142.9,3142.2,3.18239]
[1738187688364,0.0075,3142.8,3142.2,3.18239]
[1738187688766,3.6159074,3142.8,3142.2,3.18239]
[1738187688972,3.6084074,3142.8,3142.2,3.18239]
[1738187689467,0.4383,3143.3,3142.9,3.18176]
[1738187689875,0.4383,3143.3,3142.9,3.18171]
[1738187690085,0.4383,3143.3,3143.0,3.18166]
[1738187690365,3.4383,3143.6,3143.1,3.18151]
[1738187690877,3.18117,3143.5,3142.9,3.18171]
[1738187691081,0.980796,3143.5,3143.0,3.18167]
[1738187691280,3.61939,3143.6,3143.0,3.18167]
[1738187691573,0.4383,3143.6,3143.2,3.1814]
[1738187691771,0.4383,3143.9,3143.4,3.18125]
[1738187691979,0.4383,3143.9,3143.4,6.36244]
[1738187692201,0.4383,3143.9,3143.4,3.18119]
[1738187692377,0.4383,3143.9,3143.3,3.18136]
[1738187692378,0.4299694,3143.8,3143.3,3.18136]
[1738187692900,3.6108594,3143.8,3143.0,3.18166]
[1738187693102,3.18103,3143.7,3143.1,3.18151]
[1738187693598,3.1811,3143.6,3143.0,3.18166]
[1738187693771,0.4383,3143.5,3143.0,3.1816]
[1738187693977,0.4383,3143.5,3143.1,3.18155]
[1738187694507,0.4383,3143.9,3143.4,3.18125]
[1738187694677,0.4383,3143.9,3143.5,3.18114]
[1738187695383,0.4383,3144.2,3143.7,3.18096]
[1738187695583,0.4383,3144.2,3143.7,6.36186]
[1738187695983,0.4383,3144.2,3143.7,3.1809]
[1738187696379,0.4383,3144.2,3143.5,3.18112]
[1738187696380,3.18058,3144.1,3143.5,3.18112]
[1738187696584,6.36122,3144.1,3143.5,3.18112]
[1738187696792,3.18066,3144.0,3143.5,3.18112]
[1738187698008,0.0075,3143.9,3143.3,3.18131]
[1738187698207,0.0075,3143.9,3143.3,3.18129]
[1738187698514,7.281408,3144.2,3143.6,3.18106]
[1738187698703,0.7281408,3144.1,3143.6,3.18106]
[1738187699015,0.7281408,3144.1,3143.5,3.18112]
[1738187699016,4.100918,3144.2,3143.7,3.18089]
[1738187699310,3.18069,3144.0,3143.4,3.18125]
[1738187699491,3.18069,3144.0,3143.5,3.18114]
[1738187699809,0.4383,3144.1,3143.4,3.18125]
[1738187700016,0.4383,3144.1,3143.6,3.18104]
[1738187700314,0.4383,3144.5,3143.7,3.99646]
[1738187700487,3.61754,3145.4,3143.9,3.18076]
[1738187700812,3.61862,3144.4,3143.7,3.99638]
[1738187701014,3.61862,3144.4,3143.5,3.18112]
[1738187701015,3.18053,3144.2,3143.6,3.18106]
[1738187701217,3.61862,3144.4,3143.9,3.18073]
[1738187701377,4.298489,3144.4,3143.7,3.18087]
[1738187701583,3.18035,3144.3,3143.7,3.18087]
[1738187702323,1.118169,3144.4,3143.8,3.18079]
[1738187702483,4.298439,3144.4,3143.7,3.18087]
[1738187702681,3.18036,3144.3,3143.7,3.18087]
[1738187703216,0.015,3144.2,3143.3,0.7663]
[1738187703512,3.18104,3143.7,3142.6,0.7589]
[1738187703717,3.18123,3143.5,3143.0,3.18165]
[1738187704424,3.18104,3143.7,3143.1,3.18151]
[1738187705314,0.4383,3143.8,3142.6,0.7589]
[1738187705640,0.4383,3144.5,3143.2,0.8211]
[1738187705793,3.61852,3144.5,3143.8,3.18078]
[1738187705987,0.4383,3144.5,3144.2,3.1804]
[1738187706292,0.4383,3144.9,3144.5,3.18007]
[1738187706496,0.4383,3144.9,3144.6,3.18004]
[1738187706715,0.4383,3144.9,3144.5,3.18007]
[1738187708227,0.4383,3144.9,3144.6,3.17998]
[1738187708825,0.4383,3144.9,3144.5,3.18007]
[1738187709033,0.4383,3144.9,3144.6,3.18004]
[1738187710006,0.4383,3144.9,3144.0,3.18058]
[1738187710220,3.61805,3144.9,3144.3,3.18026]
[1738187710549,0.4383,3144.9,3144.3,3.18026]
[1738187710902,0.4383,3144.9,3144.5,3.18008]
[1738187711756,0.4383,3144.9,3144.4,3.18016]
[1738187711930,0.4383,3144.9,3144.5,3.18011]
[1738187715022,0.4383,3144.9,3144.3,3.18033]
[1738187715266,0.4383,3144.9,3144.3,3.18026]
[1738187715417,0.4383,3144.9,3144.4,3.1802]
[1738187715809,0.4383,3144.9,3144.2,3.18044]
[1738187715810,3.17991,3144.8,3144.2,3.18044]
[1738187716014,0.4383,3144.4,3143.6,3.8292]
[1738187716208,0.4383,3144.7,3144.2,3.18044]
[1738187716442,0.4383,3144.7,3144.3,3.18033]
[1738187716747,3.618,3145.0,3143.9,3.18076]
[1738187716959,0.4383,3145.0,3144.7,3.1799]
[1738187717448,3.1793,3145.4,3144.9,3.17973]
[1738187717449,3.0,3145.3,3144.9,3.17973]
[1738187717645,6.17935,3145.3,3144.7,3.17988]
[1738187718033,3.6176,3145.4,3144.8,3.17983]
[1738187718612,3.17945,3145.2,3144.7,3.17988]
[1738187718915,3.17956,3145.1,3144.5,6.36021]
[1738187719129,3.17956,3145.1,3144.6,3.18005]
[1738187719324,0.317956,3145.1,3143.8,3.07657965]
[1738187719613,3.17982,3144.9,3144.3,3.18034]
[1738187720211,3.18,3144.7,3144.0,3.18061]
[1738187720440,3.18015,3144.5,3144.0,3.18061]
[1738187720750,6.36004,3144.7,3144.0,6.36118]
[1738187721044,3.18,3144.7,3144.2,3.18044]
[1738187721245,3.18006,3144.6,3144.0,3.18057]
[1738187721449,3.18,3144.7,3144.0,3.18057]
[1738187721615,3.18008,3144.6,3144.0,3.18057]
[1738187721816,0.4383,3144.6,3144.0,3.18057]
[1738187722018,0.4383,3144.6,3144.1,3.18047]
[1738187722352,3.61835,3144.6,3144.1,3.18047]
[1738187722850,0.4383,3144.6,3144.1,3.18047]
[1738187724447,4.299015,3144.6,3144.1,3.18047]
[1738187724647,1.118885,3144.6,3144.2,3.18038]
[1738187724955,0.4383,3144.6,3144.2,3.18038]
[1738187725152,0.4383,3145.2,3144.4,0.7927]
[1738187725329,0.4383,3145.2,3145.0,3.17961]
[1738187725516,3.61777,3145.2,3144.6,3.17997]
[1738187725847,3.61777,3145.2,3144.7,3.17995]
[1738187726151,3.4383,3145.2,3144.8,3.17984]
[1738187728931,3.4383,3145.2,3144.6,3.17997]
[1738187729172,3.61775,3145.2,3144.7,3.17989]
[1738187729575,0.4383,3145.2,3144.8,3.17977]
[1738187729872,0.4383,3145.2,3144.9,3.17966]
[1738187730038,0.4383,3145.2,3144.4,0.7927]
[1738187730270,0.4383,3145.2,3144.8,3.17979]
[1738187730832,0.4383,3145.2,3144.8,6.35958]
[1738187731014,0.4383,3145.2,3144.8,3.17979]
[1738187731446,0.4383,3145.2,3144.9,3.17972]
[1738187732016,0.4383,3145.2,3144.4,0.7927]
[1738187732017,0.4383,3145.2,3144.6,3.18005]
[1738187732341,3.18712,3145.1,3144.4,3.18019]
[1738187732546,0.370042,3145.1,3144.2,3.18043]
[1738187732856,3.17987,3144.8,3144.2,3.18043]
[1738187733355,3.17987,3144.8,3144.2,3.18038]
[1738187733530,3.17987,3144.8,3144.3,3.18034]
[1738187733857,0.4383,3145.0,3144.5,3.18013]
[1738187734555,4.0167992,3145.0,3144.4,3.18023]
[1738187735073,0.4383,3145.0,3143.9,0.64034503]
[1738187735219,0.4383,3145.0,3144.5,3.1801]
[1738187735416,0.4383,3145.0,3144.6,3.18002]
[1738187735720,0.4383,3145.0,3144.4,3.18016]
[1738187735925,3.17977,3144.9,3144.4,3.18016]
[1738187736626,3.17977,3144.9,3144.4,6.36034]